fUSD/lending_fUSD_20260615
["ID","MTS","AMOUNT","RATE_DAILY","PERIOD"]
[425071947,1781457042000,-500.0,0.00013698,2]
[425071945,1781457042000,-1077.43,0.00013698,2]
[425071950,1781457042000,-500.0,0.00013698,2]
[425072026,1781457043000,-1207.74,0.00013698,2]
[425072041,1781457043000,-1207.74,0.00013698,2]
[425072031,1781457043000,-1207.74,0.00013698,2]
[425072032,1781457043000,-1207.74,0.00013698,2]
[425072034,1781457043000,-1207.74,0.00013698,2]
[425072033,1781457043000,-1207.74,0.00013698,2]
[425072036,1781457043000,-1207.74,0.00013698,2]
[425072035,1781457043000,-1207.74,0.00013698,2]
[425072037,1781457043000,-1207.74,0.00013698,2]
[425072038,1781457043000,-1207.74,0.00013698,2]
[425072039,1781457043000,-1207.74,0.00013698,2]
[425072043,1781457043000,-1207.74,0.00013698,2]
[425072047,1781457043000,-1207.74,0.00013698,2]
[425072044,1781457043000,-500.0,0.00013698,2]
[425072042,1781457043000,-500.0,0.00013698,2]
[425072045,1781457043000,-1207.74,0.00013698,2]
[425072046,1781457043000,-500.0,0.00013698,2]
[425072060,1781457043000,-674.84,0.00013698,2]
[425072049,1781457043000,-1207.74,0.00013698,2]
[425072048,1781457043000,-500.0,0.00013698,2]
[425072051,1781457043000,-500.0,0.00013698,2]
[425072059,1781457043000,-674.84,0.00013698,2]
[425072052,1781457043000,-500.0,0.00013698,2]
[425072050,1781457043000,-500.0,0.00013698,2]
[425072028,1781457043000,-1207.74,0.00013698,2]
[425072040,1781457043000,-500.0,0.00013698,2]
[425072030,1781457043000,-1207.74,0.00013698,2]
[425071989,1781457043000,-779.21,0.00013698,2]
[425072022,1781457043000,-317.27339362,0.00013698,2]
[425072062,1781457043000,-674.84,0.00013698,2]
[425071990,1781457043000,-779.21,0.00013698,2]
[425071988,1781457043000,-779.21,0.00013698,2]
[425071985,1781457043000,-779.21,0.00013698,2]
[425071987,1781457043000,-779.21,0.00013698,2]
[425071986,1781457043000,-779.21,0.00013698,2]
[425071991,1781457043000,-779.21,0.00013698,2]
[425071992,1781457043000,-779.21,0.00013698,2]
[425071993,1781457043000,-534.08043595,0.00013698,2]
[425071995,1781457043000,-500.0,0.00013698,2]
[425071996,1781457043000,-500.0,0.00013698,2]
[425071994,1781457043000,-500.0,0.00013698,2]
[425072024,1781457043000,-207.65368765,0.00013698,2]
[425071997,1781457043000,-500.0,0.00013698,2]
[425072001,1781457043000,-500.0,0.00013698,2]
[425072004,1781457043000,-500.0,0.00013698,2]
[425072006,1781457043000,-500.0,0.00013698,2]
[425072009,1781457043000,-500.0,0.00013698,2]
[425072012,1781457043000,-500.0,0.00013698,2]
[425072014,1781457043000,-500.0,0.00013698,2]
[425072015,1781457043000,-500.0,0.00013698,2]
[425072018,1781457043000,-500.0,0.00013698,2]
[425072017,1781457043000,-505.81197487,0.00013698,2]
[425072019,1781457043000,-500.0,0.00013698,2]
[425072020,1781457043000,-500.0,0.00013698,2]
[425072021,1781457043000,-500.0,0.00013698,2]
[425071999,1781457043000,-500.0,0.00013698,2]
[425072061,1781457043000,-674.84,0.00013698,2]
[425072102,1781457043000,-2407.68,0.00013698,2]
[425072054,1781457043000,-500.0,0.00013698,2]
[425072099,1781457043000,-2407.68,0.00013698,2]
[425072090,1781457043000,-500.0,0.00013698,2]
[425072088,1781457043000,-500.0,0.00013698,2]
[425072100,1781457043000,-2407.68,0.00013698,2]
[425072094,1781457043000,-2407.68,0.00013698,2]
[425072095,1781457043000,-2407.68,0.00013698,2]
[425072091,1781457043000,-581.8,0.00013698,2]
[425072093,1781457043000,-2407.68,0.00013698,2]
[425072092,1781457043000,-2407.68,0.00013698,2]
[425072097,1781457043000,-2407.68,0.00013698,2]
[425072098,1781457043000,-2407.68,0.00013698,2]
[425072096,1781457043000,-2407.68,0.00013698,2]
[425072089,1781457043000,-500.0,0.00013698,2]
[425072101,1781457043000,-2407.68,0.00013698,2]
[425072104,1781457043000,-500.0,0.00013698,2]
[425072103,1781457043000,-500.0,0.00013698,2]
[425072111,1781457043000,-500.0,0.00013698,2]
[425072110,1781457043000,-500.0,0.00013698,2]
[425072107,1781457043000,-500.0,0.00013698,2]
[425072112,1781457043000,-500.0,0.00013698,2]
[425072056,1781457043000,-674.84,0.00013698,2]
[425072108,1781457043000,-500.0,0.00013698,2]
[425072109,1781457043000,-500.0,0.00013698,2]
[425072113,1781457043000,-1020.95,0.00013698,2]
[425072114,1781457043000,-1020.95,0.00013698,2]
[425072115,1781457043000,-1020.95,0.00013698,2]
[425072105,1781457043000,-500.0,0.00013698,2]
[425072083,1781457043000,-500.0,0.00013698,2]
[425072106,1781457043000,-500.0,0.00013698,2]
[425072080,1781457043000,-500.0,0.00013698,2]
[425072078,1781457043000,-500.0,0.00013698,2]
[425072053,1781457043000,-500.0,0.00013698,2]
[425072055,1781457043000,-674.84,0.00013698,2]
[425072058,1781457043000,-674.84,0.00013698,2]
[425072063,1781457043000,-674.84,0.00013698,2]
[425072064,1781457043000,-674.84,0.00013698,2]
[425072074,1781457043000,-500.0,0.00013698,2]
[425072067,1781457043000,-674.84,0.00013698,2]
[425072065,1781457043000,-674.84,0.00013698,2]
[425072066,1781457043000,-674.84,0.00013698,2]
[425072075,1781457043000,-500.0,0.00013698,2]
[425072071,1781457043000,-674.84,0.00013698,2]
[425072072,1781457043000,-500.0,0.00013698,2]
[425072057,1781457043000,-674.84,0.00013698,2]
[425072069,1781457043000,-674.84,0.00013698,2]
[425072084,1781457043000,-500.0,0.00013698,2]
[425072079,1781457043000,-500.0,0.00013698,2]
[425072085,1781457043000,-500.0,0.00013698,2]
[425072086,1781457043000,-500.0,0.00013698,2]
[425072081,1781457043000,-500.0,0.00013698,2]
[425072082,1781457043000,-500.0,0.00013698,2]
[425072076,1781457043000,-500.0,0.00013698,2]
[425072068,1781457043000,-674.84,0.00013698,2]
[425072070,1781457043000,-674.84,0.00013698,2]
[425072073,1781457043000,-500.0,0.00013698,2]
[425072077,1781457043000,-500.0,0.00013698,2]
[425072087,1781457043000,-500.0,0.00013698,2]
[425072138,1781457044000,-821.1,0.00013698,2]
[425072154,1781457044000,-843.7,0.00013699,2]
[425072142,1781457044000,-821.1,0.00013698,2]
[425072141,1781457044000,-821.1,0.00013698,2]
[425072145,1781457044000,-226.33260723,0.00013698,2]
[425072146,1781457044000,-183.0,0.00013698,2]
[425072143,1781457044000,-503.57081224,0.00013698,2]
[425072140,1781457044000,-821.1,0.00013698,2]
[425072144,1781457044000,-550.89393904,0.00013698,2]
[425072153,1781457044000,-168.74,0.00013699,2]
[425072161,1781457044000,-499.70095473,0.00013699,2]
[425072151,1781457044000,-500.0,0.00013698,2]
[425072162,1781457044000,-1718.19,0.00013699,2]
[425072159,1781457044000,-722.51,0.00013699,2]
[425072164,1781457044000,-500.0,0.00013699,2]
[425072157,1781457044000,-200.0,0.00013699,2]
[425072155,1781457044000,-2500.0,0.00013699,2]
[425072160,1781457044000,-1718.19,0.00013699,2]
[425072158,1781457044000,-16519.67,0.00013699,2]
[425072149,1781457044000,-500.0,0.00013698,2]
[425072152,1781457044000,-292.30346816,0.00013698,2]
[425072147,1781457044000,-500.0,0.00013698,2]
[425072125,1781457044000,-821.1,0.00013698,2]
[425072139,1781457044000,-821.1,0.00013698,2]
[425072166,1781457044000,-642.02047132,0.00013699,2]
[425072118,1781457044000,-1020.95,0.00013698,2]
[425072119,1781457044000,-1020.95,0.00013698,2]
[425072116,1781457044000,-1020.95,0.00013698,2]
[425072120,1781457044000,-1020.95,0.00013698,2]
[425072121,1781457044000,-1020.95,0.00013698,2]
[425072122,1781457044000,-1020.95,0.00013698,2]
[425072117,1781457044000,-1020.95,0.00013698,2]
[425072123,1781457044000,-500.0,0.00013698,2]
[425072124,1781457044000,-500.0,0.00013698,2]
[425072126,1781457044000,-821.1,0.00013698,2]
[425072127,1781457044000,-821.1,0.00013698,2]
[425072134,1781457044000,-821.1,0.00013698,2]
[425072130,1781457044000,-821.1,0.00013698,2]
[425072135,1781457044000,-821.1,0.00013698,2]
[425072133,1781457044000,-821.1,0.00013698,2]
[425072128,1781457044000,-821.1,0.00013698,2]
[425072132,1781457044000,-821.1,0.00013698,2]
[425072129,1781457044000,-821.1,0.00013698,2]
[425072131,1781457044000,-821.1,0.00013698,2]
[425072137,1781457044000,-821.1,0.00013698,2]
[425072136,1781457044000,-821.1,0.00013698,2]
[425072165,1781457044000,-500.0,0.00013699,2]
[425072156,1781457044000,-9625.6,0.00013699,2]
[425072168,1781457044000,-500.0,0.00013699,2]
[425072192,1781457044000,-163.74,0.000137,2]
[425072197,1781457044000,-20988.86700479,0.00013761,2]
[425072194,1781457044000,-221.635004,0.0001371,2]
[425072193,1781457044000,-251.606539,0.0001371,2]
[425072199,1781457044000,-29401.54596925,0.00013785,2]
[425072195,1781457044000,-215.634466,0.0001371,2]
[425072200,1781457044000,-821.1,0.00013799,2]
[425072198,1781457044000,-383.580504,0.00013779,2]
[425072201,1781457044000,-263.475077,0.00013817,2]
[425072196,1781457044000,-163.15,0.00013735,2]
[425072202,1781457044000,-4621.719343,0.00013817,2]
[425072204,1781457044000,-166.66,0.00013878,2]
[425072205,1781457044000,-1312.53890251,0.00013896,2]
[425072208,1781457044000,-1037.28713687,0.000139,2]
[425072210,1781457044000,-18000.0,0.000139,5]
[425072206,1781457044000,-612.65739478,0.00013896,2]
[425072211,1781457044000,-500.0,0.00013936,2]
[425072207,1781457044000,-187.82072455,0.00013896,2]
[425072212,1781457044000,-20988.86700479,0.00013953,2]
[425072209,1781457044000,-1988.01539827,0.000139,2]
[425072163,1781457044000,-500.0,0.00013699,2]
[425072185,1781457044000,-500.0,0.00013699,2]
[425072187,1781457044000,-500.0,0.00013699,2]
[425072203,1781457044000,-215.03290396,0.00013869,2]
[425072189,1781457044000,-500.0,0.00013699,2]
[425072186,1781457044000,-500.0,0.00013699,2]
[425072167,1781457044000,-1000.0,0.00013699,2]
[425072172,1781457044000,-500.0,0.00013699,2]
[425072169,1781457044000,-500.0,0.00013699,2]
[425072170,1781457044000,-500.0,0.00013699,2]
[425072171,1781457044000,-500.0,0.00013699,2]
[425072213,1781457044000,-2796.32278443,0.0001396,2]
[425072174,1781457044000,-500.0,0.00013699,2]
[425072178,1781457044000,-500.0,0.00013699,2]
[425072173,1781457044000,-500.0,0.00013699,2]
[425072180,1781457044000,-500.0,0.00013699,2]
[425072183,1781457044000,-500.0,0.00013699,2]
[425072182,1781457044000,-500.0,0.00013699,2]
[425072179,1781457044000,-500.0,0.00013699,2]
[425072181,1781457044000,-500.0,0.00013699,2]
[425072175,1781457044000,-500.0,0.00013699,2]
[425072177,1781457044000,-500.0,0.00013699,2]
[425072176,1781457044000,-500.0,0.00013699,2]
[425072184,1781457044000,-610.69428861,0.00013699,2]
[425072190,1781457044000,-500.0,0.00013699,2]
[425072191,1781457044000,-500.0,0.00013699,2]
[425072188,1781457044000,-500.0,0.00013699,2]
[425072256,1781457045000,-3600.0,0.000145,5]
[425072251,1781457045000,-500.0,0.0001445,2]
[425072250,1781457045000,-779.21,0.0001445,2]
[425072248,1781457045000,-500.0,0.0001445,2]
[425072249,1781457045000,-500.0,0.0001445,2]
[425072242,1781457045000,-821.15736959,0.00014399,2]
[425072245,1781457045000,-500.0,0.0001445,2]
[425072244,1781457045000,-29401.54596925,0.0001445,2]
[425072243,1781457045000,-114853.893276,0.000144,2]
[425072252,1781457045000,-500.0,0.0001445,2]
[425072247,1781457045000,-1077.43,0.0001445,2]
[425072255,1781457045000,-567.93,0.00014495,2]
[425072265,1781457045000,-29401.54596925,0.00014671,2]
[425072253,1781457045000,-174.354774,0.00014468,2]
[425072254,1781457045000,-821.71,0.00014495,2]
[425072258,1781457045000,-20988.86700479,0.0001453,2]
[425072257,1781457045000,-159.16600636,0.00014521,10]
[425072259,1781457045000,-163.15,0.00014543,2]
[425072260,1781457045000,-1037.28713687,0.00014567,2]
[425072261,1781457045000,-150.0,0.00014588,2]
[425072263,1781457045000,-151.0,0.0001463,2]
[425072267,1781457045000,-500.0,0.00014677,2]
[425072266,1781457045000,-500.0,0.00014677,2]
[425072238,1781457045000,-821.1,0.00014399,2]
[425072246,1781457045000,-500.0,0.0001445,2]
[425072240,1781457045000,-821.1,0.00014399,2]
[425072215,1781457045000,-2000.0,0.00013963,2]
[425072239,1781457045000,-821.1,0.00014399,2]
[425072222,1781457045000,-200.63335723,0.00014041,2]
[425072214,1781457045000,-1600.0,0.00013963,2]
[425072262,1781457045000,-3600.0,0.000146,5]
[425072217,1781457045000,-500.0,0.00013992,2]
[425072219,1781457045000,-29401.54596925,0.00014007,2]
[425072218,1781457045000,-250.0,0.00014,2]
[425072216,1781457045000,-60000.0,0.0001399,2]
[425072220,1781457045000,-151.0,0.00014041,2]
[425072221,1781457045000,-156.587,0.00014041,2]
[425072223,1781457045000,-20988.86700479,0.00014145,2]
[425072224,1781457045000,-2000.0,0.00014196,2]
[425072237,1781457045000,-674.84,0.00014399,2]
[425072225,1781457045000,-236.13,0.00014196,2]
[425072232,1781457045000,-350.0,0.00014335,2]
[425072226,1781457045000,-833.39,0.00014196,2]
[425072229,1781457045000,-29401.54596925,0.00014228,2]
[425072231,1781457045000,-502.35889749,0.00014299,2]
[425072228,1781457045000,-1020.95,0.00014209,2]
[425072227,1781457045000,-500.0,0.00014209,2]
[425072230,1781457045000,-1037.28713687,0.00014233,2]
[425072235,1781457045000,-350.0,0.00014361,2]
[425072234,1781457045000,-1500.0,0.00014338,2]
[425072241,1781457045000,-821.1,0.00014399,2]
[425072236,1781457045000,-1207.74,0.00014399,2]
[425072233,1781457045000,-20988.86700479,0.00014338,2]
[425072269,1781457045000,-500.0,0.00014677,2]
[425072264,1781457045000,-350.0,0.0001466,2]
[425072271,1781457045000,-500.0,0.00014677,2]
[425072299,1781457045000,-500.0,0.00014677,2]
[425072302,1781457045000,-500.0,0.00014677,2]
[425072301,1781457045000,-500.0,0.00014677,2]
[425072298,1781457045000,-500.0,0.00014677,2]
[425072304,1781457045000,-500.0,0.00014677,2]
[425072306,1781457045000,-500.0,0.00014677,2]
[425072307,1781457045000,-500.0,0.00014677,2]
[425072303,1781457045000,-500.0,0.00014677,2]
[425072305,1781457045000,-500.0,0.00014677,2]
[425072312,1781457045000,-500.0,0.00014677,2]
[425072309,1781457045000,-500.0,0.00014677,2]
[425072310,1781457045000,-500.0,0.00014677,2]
[425072311,1781457045000,-500.0,0.00014677,2]
[425072313,1781457045000,-500.0,0.00014677,2]
[425072316,1781457045000,-500.0,0.00014677,2]
[425072315,1781457045000,-500.0,0.00014677,2]
[425072319,1781457045000,-500.0,0.00014677,2]
[425072314,1781457045000,-500.0,0.00014677,2]
[425072323,1781457045000,-500.0,0.00014677,2]
[425072318,1781457045000,-500.0,0.00014677,2]
[425072321,1781457045000,-500.0,0.00014677,2]
[425072320,1781457045000,-500.0,0.00014677,2]
[425072317,1781457045000,-500.0,0.00014677,2]
[425072279,1781457045000,-500.0,0.00014677,2]
[425072322,1781457045000,-500.0,0.00014677,2]
[425072296,1781457045000,-500.0,0.00014677,2]
[425072300,1781457045000,-500.0,0.00014677,2]
[425072308,1781457045000,-500.0,0.00014677,2]
[425072292,1781457045000,-500.0,0.00014677,2]
[425072277,1781457045000,-500.0,0.00014677,2]
[425072297,1781457045000,-500.0,0.00014677,2]
[425072270,1781457045000,-500.0,0.00014677,2]
[425072273,1781457045000,-500.0,0.00014677,2]
[425072276,1781457045000,-500.0,0.00014677,2]
[425072275,1781457045000,-500.0,0.00014677,2]
[425072268,1781457045000,-500.0,0.00014677,2]
[425072272,1781457045000,-500.0,0.00014677,2]
[425072278,1781457045000,-500.0,0.00014677,2]
[425072281,1781457045000,-500.0,0.00014677,2]
[425072280,1781457045000,-500.0,0.00014677,2]
[425072282,1781457045000,-500.0,0.00014677,2]
[425072274,1781457045000,-500.0,0.00014677,2]
[425072283,1781457045000,-500.0,0.00014677,2]
[425072294,1781457045000,-500.0,0.00014677,2]
[425072284,1781457045000,-500.0,0.00014677,2]
[425072291,1781457045000,-500.0,0.00014677,2]
[425072293,1781457045000,-500.0,0.00014677,2]
[425072288,1781457045000,-500.0,0.00014677,2]
[425072285,1781457045000,-500.0,0.00014677,2]
[425072295,1781457045000,-500.0,0.00014677,2]
[425072289,1781457045000,-500.0,0.00014677,2]
[425072290,1781457045000,-500.0,0.00014677,2]
[425072286,1781457045000,-500.0,0.00014677,2]
[425072287,1781457045000,-500.0,0.00014677,2]
[425072364,1781457046000,-3836.0,0.000149,5]
[425072350,1781457046000,-1401.82224017,0.00014888,2]
[425072351,1781457046000,-253.561,0.00014891,2]
[425072354,1781457046000,-1401.82224017,0.00014892,2]
[425072356,1781457046000,-1207.74,0.00014899,2]
[425072357,1781457046000,-674.84,0.00014899,2]
[425072355,1781457046000,-29401.54596925,0.00014893,2]
[425072358,1781457046000,-10857.04665394,0.000149,2]
[425072362,1781457046000,-1988.01539827,0.000149,2]
[425072360,1781457046000,-1037.28713687,0.000149,2]
[425072366,1781457046000,-1312.53890251,0.000149,2]
[425072373,1781457046000,-291.74221137,0.00014908,2]
[425072386,1781457046000,-1136.35709721,0.00014932,5]
[425072359,1781457046000,-25000.0,0.000149,3]
[425072369,1781457046000,-612.65739478,0.000149,2]
[425072375,1781457046000,-1401.82224017,0.00014911,2]
[425072376,1781457046000,-1401.82224017,0.00014917,2]
[425072378,1781457046000,-151.0,0.0001493,2]
[425072384,1781457046000,-1136.35709721,0.00014932,5]
[425072377,1781457046000,-1401.82224017,0.00014927,2]
[425072381,1781457046000,-1136.35709721,0.00014932,5]
[425072379,1781457046000,-151.0,0.0001493,2]
[425072380,1781457046000,-151.0,0.0001493,2]
[425072349,1781457046000,-1555.5,0.00014886,2]
[425072371,1781457046000,-1401.82224017,0.00014905,2]
[425072352,1781457046000,-168.37658573,0.00014891,2]
[425072325,1781457046000,-500.0,0.00014677,2]
[425072347,1781457046000,-1401.82224017,0.0001487,2]
[425072385,1781457046000,-1136.35709721,0.00014932,5]
[425072324,1781457046000,-500.0,0.00014677,2]
[425072327,1781457046000,-500.0,0.00014677,2]
[425072328,1781457046000,-500.0,0.00014677,2]
[425072332,1781457046000,-3600.0,0.000147,5]
[425072331,1781457046000,-500.0,0.00014677,2]
[425072329,1781457046000,-500.0,0.00014677,2]
[425072333,1781457046000,-500.0,0.0001474,2]
[425072330,1781457046000,-500.0,0.00014677,2]
[425072334,1781457046000,-10000.0,0.00014787,2]
[425072326,1781457046000,-500.0,0.00014677,2]
[425072353,1781457046000,-230.607443,0.00014892,2]
[425072335,1781457046000,-350.0,0.00014792,2]
[425072339,1781457046000,-1401.82224017,0.00014828,2]
[425072346,1781457046000,-1401.82224017,0.00014863,2]
[425072341,1781457046000,-33287.1579,0.00014833,2]
[425072340,1781457046000,-1401.82224017,0.00014832,2]
[425072345,1781457046000,-1401.82224017,0.00014858,2]
[425072343,1781457046000,-1401.82224017,0.00014837,2]
[425072342,1781457046000,-2000.0,0.00014833,2]
[425072336,1781457046000,-350.0,0.000148,2]
[425072344,1781457046000,-1401.82224017,0.00014857,2]
[425072338,1781457046000,-1252.0,0.00014818,2]
[425072348,1781457046000,-1401.82224017,0.00014877,2]
[425072337,1781457046000,-3600.0,0.000148,5]
[425072382,1781457046000,-1136.35709721,0.00014932,5]
[425072439,1781457046000,-814.53,0.00014932,2]
[425072383,1781457046000,-1136.35709721,0.00014932,5]
[425072415,1781457046000,-192.71236502,0.00014932,2]
[425072420,1781457046000,-779.21,0.00014932,2]
[425072418,1781457046000,-779.21,0.00014932,2]
[425072417,1781457046000,-196.29,0.00014932,2]
[425072432,1781457046000,-500.0,0.00014932,2]
[425072421,1781457046000,-779.21,0.00014932,2]
[425072422,1781457046000,-779.21,0.00014932,2]
[425072424,1781457046000,-500.0,0.00014932,2]
[425072423,1781457046000,-500.0,0.00014932,2]
[425072425,1781457046000,-466.46074342,0.00014932,2]
[425072427,1781457046000,-2407.68,0.00014932,2]
[425072414,1781457046000,-500.0,0.00014932,2]
[425072426,1781457046000,-2407.68,0.00014932,2]
[425072430,1781457046000,-2407.68,0.00014932,2]
[425072428,1781457046000,-2407.68,0.00014932,2]
[425072431,1781457046000,-500.0,0.00014932,2]
[425072433,1781457046000,-500.0,0.00014932,2]
[425072440,1781457046000,-814.53,0.00014932,2]
[425072434,1781457046000,-1020.95,0.00014932,2]
[425072438,1781457046000,-1020.95,0.00014932,2]
[425072436,1781457046000,-1020.95,0.00014932,2]
[425072387,1781457046000,-1136.35709721,0.00014932,5]
[425072437,1781457046000,-1020.95,0.00014932,2]
[425072441,1781457046000,-814.53,0.00014932,2]
[425072429,1781457046000,-2407.68,0.00014932,2]
[425072419,1781457046000,-779.21,0.00014932,2]
[425072435,1781457046000,-1020.95,0.00014932,2]
[425072411,1781457046000,-1077.43,0.00014932,2]
[425072416,1781457046000,-500.0,0.00014932,2]
[425072389,1781457046000,-1136.35709721,0.00014932,5]
[425072396,1781457046000,-500.0,0.00014932,2]
[425072391,1781457046000,-1136.35709719,0.00014932,5]
[425072395,1781457046000,-500.0,0.00014932,2]
[425072388,1781457046000,-1136.35709721,0.00014932,5]
[425072394,1781457046000,-500.0,0.00014932,2]
[425072397,1781457046000,-500.0,0.00014932,2]
[425072393,1781457046000,-500.0,0.00014932,2]
[425072398,1781457046000,-500.0,0.00014932,2]
[425072392,1781457046000,-1136.35709721,0.00014932,5]
[425072400,1781457046000,-500.0,0.00014932,2]
[425072390,1781457046000,-1136.35709721,0.00014932,5]
[425072401,1781457046000,-265.942942,0.00014932,2]
[425072399,1781457046000,-500.0,0.00014932,2]
[425072410,1781457046000,-1077.43,0.00014932,2]
[425072405,1781457046000,-500.0,0.00014932,2]
[425072407,1781457046000,-1077.43,0.00014932,2]
[425072408,1781457046000,-1077.43,0.00014932,2]
[425072412,1781457046000,-500.0,0.00014932,2]
[425072409,1781457046000,-1077.43,0.00014932,2]
[425072404,1781457046000,-500.0,0.00014932,2]
[425072406,1781457046000,-500.0,0.00014932,2]
[425072403,1781457046000,-500.0,0.00014932,2]
[425072402,1781457046000,-500.0,0.00014932,2]
[425072413,1781457046000,-500.0,0.00014932,2]
[425072477,1781457047000,-500.0,0.00014999,2]
[425072478,1781457047000,-504.0687638,0.00014999,2]
[425072468,1781457047000,-151.0,0.00014989,2]
[425072475,1781457047000,-500.0,0.00014999,2]
[425072470,1781457047000,-926.87472025,0.0001499,2]
[425072472,1781457047000,-151.0,0.00014997,2]
[425072469,1781457047000,-3000.0,0.0001499,2]
[425072471,1781457047000,-1401.82224017,0.00014993,2]
[425072474,1781457047000,-174.40317262,0.00014999,2]
[425072479,1781457047000,-500.0,0.00014999,2]
[425072481,1781457047000,-500.0,0.00014999,2]
[425072485,1781457047000,-500.0,0.00014999,2]
[425072480,1781457047000,-500.0,0.00014999,2]
[425072486,1781457047000,-188.13,0.00014999,2]
[425072482,1781457047000,-500.0,0.00014999,2]
[425072487,1781457047000,-500.0,0.00014999,2]
[425072483,1781457047000,-500.0,0.00014999,2]
[425072489,1781457047000,-500.0,0.00014999,2]
[425072488,1781457047000,-500.0,0.00014999,2]
[425072490,1781457047000,-500.0,0.00014999,2]
[425072476,1781457047000,-500.0,0.00014999,2]
[425072484,1781457047000,-500.0,0.00014999,2]
[425072467,1781457047000,-121057.04077374,0.00014989,2]
[425072449,1781457047000,-1401.82224017,0.0001496,2]
[425072460,1781457047000,-1207.74,0.00014988,2]
[425072442,1781457047000,-814.53,0.00014932,2]
[425072444,1781457047000,-814.53,0.00014932,2]
[425072454,1781457047000,-500.0,0.00014988,2]
[425072443,1781457047000,-814.53,0.00014932,2]
[425072445,1781457047000,-350.0,0.00014942,2]
[425072446,1781457047000,-1401.82224017,0.00014946,2]
[425072452,1781457047000,-1401.82224017,0.00014976,2]
[425072451,1781457047000,-1401.82224017,0.00014966,2]
[425072448,1781457047000,-1401.82224017,0.00014954,2]
[425072453,1781457047000,-500.0,0.00014988,2]
[425072463,1781457047000,-674.84,0.00014988,2]
[425072447,1781457047000,-1401.82224017,0.00014953,2]
[425072455,1781457047000,-500.0,0.00014988,2]
[425072456,1781457047000,-500.0,0.00014988,2]
[425072465,1781457047000,-674.84,0.00014988,2]
[425072466,1781457047000,-675.02,0.00014988,2]
[425072462,1781457047000,-674.84,0.00014988,2]
[425072458,1781457047000,-1207.74,0.00014988,2]
[425072464,1781457047000,-674.84,0.00014988,2]
[425072491,1781457047000,-520.99910631,0.00014999,2]
[425072459,1781457047000,-1207.74,0.00014988,2]
[425072461,1781457047000,-1207.93955664,0.00014988,2]
[425072450,1781457047000,-1401.82224017,0.00014961,2]
[425072497,1781457047000,-1077.43,0.00014999,2]
[425072457,1781457047000,-1207.74,0.00014988,2]
[425072493,1781457047000,-1077.43,0.00014999,2]
[425072523,1781457047000,-1021.18157557,0.00014999,2]
[425072521,1781457047000,-1020.95,0.00014999,2]
[425072524,1781457047000,-814.53,0.00014999,2]
[425072530,1781457047000,-300.0,0.00014999,2]
[425072527,1781457047000,-1013.15074,0.00014999,2]
[425072526,1781457047000,-1013.15074,0.00014999,2]
[425072529,1781457047000,-300.0,0.00014999,2]
[425072525,1781457047000,-1013.15074,0.00014999,2]
[425072531,1781457047000,-300.0,0.00014999,2]
[425072528,1781457047000,-1013.15074,0.00014999,2]
[425072532,1781457047000,-666.0,0.00014999,2]
[425072538,1781457047000,-300.0,0.00014999,2]
[425072535,1781457047000,-670.9593427,0.00014999,2]
[425072539,1781457047000,-300.0,0.00014999,2]